bitfinex-derivatives/quotes_SOLF0:USTF0_20251101
["timestamp","ask_amount","ask_price","bid_price","bid_amount"]
[1762006254303,4.11869752,184.78,184.73,2.71]
[1762006254503,2.68,184.82,184.73,2.71]
[1762006254704,4.11992248,184.81,184.73,2.71]
[1762006255000,4.11992248,184.8,184.73,2.71]
[1762006255200,4.11992248,184.79,184.73,2.71]
[1762006255400,4.11992248,184.78,184.73,2.71]
[1762006255597,2.68,184.81,184.73,2.71]
[1762006255899,2.68,184.81,184.72,4.46784844]
[1762006255900,2.68,184.79,184.72,4.46784844]
[1762006256107,6.80065019,184.78,184.72,4.46784844]
[1762006256308,2.68,184.76,184.72,7.17784844]
[1762006256503,4.12065019,184.75,184.72,7.17784844]
[1762006256711,2.68,184.8,184.73,2.71]
[1762006256905,4.12073409,184.79,184.73,2.71]
[1762006257109,4.12073409,184.78,184.73,2.71]
[1762006257305,4.12073409,184.77,184.73,2.71]
[1762006257508,4.12073409,184.76,184.73,2.71]
[1762006257705,2.68,184.8,184.73,2.71]
[1762006257911,4.12361853,184.79,184.73,2.71]
[1762006258108,6.80361853,184.78,184.73,2.71]
[1762006258308,4.12361853,184.77,184.73,2.71]
[1762006258510,4.12361853,184.76,184.73,2.71]
[1762006258697,2.68,184.78,184.73,2.71]
[1762006258902,6.80529553,184.77,184.73,2.71]
[1762006259206,4.12529553,184.76,184.73,2.71]
[1762006259410,4.12529553,184.75,184.73,2.71]
[1762006259710,2.71494381,184.77,184.73,2.71]
[1762006259906,4.12666987,184.76,184.73,2.71]
[1762006260108,6.80666987,184.75,184.72,4.46784844]
[1762006260412,6.80666987,184.74,184.72,4.46784844]
[1762006260610,4.12666987,184.73,184.72,4.46784844]
[1762006261213,2.71494381,184.77,184.73,2.71]
[1762006261515,6.80835805,184.76,184.72,7.17784844]
[1762006261812,0.03494381,184.77,184.73,2.71]
[1762006262312,4.12951676,184.76,184.73,2.71]
[1762006262507,0.03494381,184.77,184.73,2.71]
[1762006264411,0.03494381,184.77,184.73,6.00199565]
[1762006264604,0.03494381,184.77,184.74,2.71]
[1762006265098,0.03494381,184.77,184.74,7.5835]
[1762006265303,0.03494381,184.77,184.75,2.71]
[1762006270217,0.03494381,184.77,184.73,7.74635744]
[1762006270522,0.03494381,184.77,184.73,2.71]
[1762006273718,2.71494381,184.77,184.73,2.71]
[1762006273924,6.82137789,184.76,184.72,6.57778173]
[1762006274219,6.82102282,184.75,184.72,4.46784844]
[1762006274420,2.68,184.75,184.72,4.46784844]
[1762006274817,2.71494381,184.77,184.73,2.71]
[1762006275024,4.1412592,184.76,184.73,2.71]
[1762006275208,4.1412592,184.75,184.73,2.71]
[1762006275412,2.71494381,184.77,184.73,2.71]
[1762006275612,4.14236453,184.76,184.73,2.71]
[1762006275914,0.03494381,184.77,184.73,2.71]
[1762006276415,4.14368057,184.76,184.73,2.71]
[1762006276611,4.14368057,184.76,184.72,9.50420588]
[1762006276612,2.67,184.74,184.72,4.46784844]
[1762006277618,4.14297986,184.73,184.72,4.46784844]
[1762006278013,6.81297986,184.73,184.72,4.46784844]
[1762006281728,8.92291315,184.73,184.72,4.46784844]
[1762006282428,6.81297986,184.73,184.72,4.46784844]
[1762006283830,4.14297986,184.73,184.72,7.32784844]
[1762006284731,4.14297986,184.73,184.72,4.46784844]
[1762006285031,4.14297986,184.73,184.72,7.32784844]
[1762006285633,4.14297986,184.73,184.72,4.46784844]
[1762006286122,4.14297986,184.73,184.72,7.32784844]
[1762006287331,4.14297986,184.73,184.72,4.46784844]
[1762006287721,4.14297986,184.73,184.72,7.32784844]
[1762006287924,0.03494381,184.77,184.73,2.86]
[1762006288125,4.13241575,184.76,184.73,2.86]
[1762006288326,4.13241575,184.75,184.73,2.86]
[1762006288631,4.13241575,184.74,184.73,2.86]
[1762006289927,4.13241575,184.74,184.72,4.46784844]
[1762006290131,2.68,184.76,184.72,4.46784844]
[1762006290330,4.13380346,184.75,184.72,4.46784844]
[1762006290528,4.13380346,184.74,184.72,4.46784844]
[1762006290827,2.68,184.75,184.72,7.32784844]
[1762006290828,4.13380346,184.73,184.72,7.32784844]
[1762006291433,4.13380346,184.73,184.72,4.46784844]
[1762006292243,4.13380346,184.73,184.72,7.32784844]
[1762006292424,0.03494381,184.77,184.73,2.86]
[1762006292628,4.13515746,184.76,184.73,2.86]
[1762006292934,0.03494381,184.77,184.74,2.86]
[1762006293130,4.13624233,184.76,184.74,2.86]
[1762006293328,0.03494381,184.77,184.74,2.86]
[1762006293636,0.03494381,184.77,184.75,2.86]
[1762006293828,4.13656656,184.76,184.75,2.86]
[1762006295936,0.03494381,184.77,184.75,2.86]
[1762006297145,4.13589458,184.76,184.75,2.86]
[1762006297434,0.03494381,184.77,184.75,2.86]
[1762006302841,0.03494381,184.77,184.75,7.7335]
[1762006303045,0.03494381,184.77,184.76,2.86]
[1762006306533,0.03494381,184.77,184.76,80.16]
[1762006306736,0.03494381,184.77,184.76,2.86]
[1762006306948,0.03494381,184.77,184.76,80.16]
[1762006307141,0.03494381,184.77,184.76,2.86]
[1762006307440,0.03494381,184.77,184.76,80.16]
[1762006310152,0.03494381,184.77,184.76,2.86]
[1762006310346,0.03494381,184.77,184.76,80.14]
[1762006310551,0.03494381,184.77,184.76,2.86]
[1762006310751,0.03494381,184.77,184.76,80.12]
[1762006315548,0.03494381,184.77,184.76,2.86]
[1762006315753,0.03494381,184.77,184.76,80.08]
[1762006316046,0.03494381,184.77,184.72,4.46784844]
[1762006316255,0.03494381,184.77,184.74,2.75]
[1762006316955,2.70494381,184.77,184.75,77.2]
[1762006317351,6.80249769,184.76,184.74,77.2]
[1762006317550,2.67,184.76,184.74,77.2]
[1762006317753,0.03494381,184.77,184.74,79.95]
[1762006317953,4.13315499,184.76,184.74,79.95]
[1762006318257,0.03494381,184.77,184.74,79.95]
[1762006318448,4.13329944,184.76,184.74,79.95]
[1762006318649,2.70494381,184.77,184.74,79.95]
[1762006318959,4.13315688,184.76,184.74,79.95]
[1762006319159,2.70494381,184.77,184.74,79.95]
[1762006319461,0.03494381,184.77,184.75,2.75]
[1762006320856,2.67,184.75,184.74,77.2]
[1762006321156,4.13328013,184.75,184.74,77.2]
[1762006321558,0.03494381,184.77,184.74,79.95]
[1762006321752,4.13347929,184.76,184.74,79.95]
[1762006321959,0.03494381,184.77,184.75,2.75]
[1762006322352,4.13392131,184.76,184.75,2.75]
[1762006322755,4.13392131,184.76,184.74,79.95]
[1762006322952,0.03494381,184.77,184.74,79.95]
[1762006323149,0.03494381,184.77,184.74,77.2]
[1762006323150,4.13359426,184.76,184.74,77.2]
[1762006323354,4.13374655,184.75,184.74,77.2]
[1762006324058,4.13374655,184.75,184.74,77.18]
[1762006324365,4.13374655,184.75,184.73,2.75]
[1762006324563,4.13374679,184.74,184.73,2.75]
[1762006324752,4.13374679,184.74,184.73,79.91]
[1762006325559,0.03494381,184.77,184.74,2.75]
[1762006325860,4.13622654,184.76,184.74,2.75]
[1762006326068,4.13622654,184.75,184.74,2.75]
[1762006326469,0.03494381,184.77,184.74,2.75]
[1762006326765,4.13800608,184.76,184.74,2.75]
[1762006326959,0.03494381,184.77,184.74,2.75]
[1762006327369,4.14016024,184.76,184.74,2.75]
[1762006327580,2.10993329,184.83,184.74,2.75]
[1762006327866,4.14143342,184.82,184.77,2.75]
[1762006328069,4.14143342,184.81,184.77,2.75]
[1762006328262,4.14143342,184.8,184.77,2.75]
[1762006328573,2.10993329,184.83,184.77,2.75]
[1762006328770,4.14351031,184.82,184.77,2.75]
[1762006328970,4.14351031,184.81,184.77,2.75]
[1762006329170,2.10993329,184.83,184.77,2.75]
[1762006329171,4.14351031,184.8,184.77,2.75]
[1762006329364,2.10993329,184.83,184.77,2.75]
[1762006329667,4.14376756,184.82,184.77,2.75]
[1762006329969,4.14376756,184.81,184.77,2.78552425]
[1762006330163,4.14376756,184.8,184.77,2.78552425]
[1762006330368,4.14376756,184.79,184.78,79.93]
[1762006330671,4.14376756,184.79,184.78,2.75]
[1762006330872,2.67,184.85,184.79,2.75]
[1762006331062,4.14437244,184.84,184.79,2.75]
[1762006331261,4.14437244,184.83,184.79,2.75]
[1762006331465,2.67,184.84,184.79,2.75]
[1762006331466,4.14437244,184.82,184.79,2.75]
[1762006331661,4.14437244,184.81,184.79,2.75]
[1762006331872,2.10993329,184.86,184.79,2.75]
[1762006332174,2.67,184.84,184.79,2.75]
[1762006332364,4.14511059,184.83,184.79,2.75]
[1762006332564,4.14511059,184.82,184.79,2.75]
[1762006332873,4.14511059,184.81,184.79,2.75]
[1762006333067,2.67,184.84,184.79,2.75]
[1762006333267,4.14526437,184.83,184.79,2.75]
[1762006333467,4.14526437,184.82,184.79,2.75]
[1762006333674,4.14526437,184.81,184.79,2.75]
[1762006333863,2.67,184.84,184.79,2.75]
[1762006334066,4.14488404,184.83,184.79,2.75]
[1762006334365,2.67,184.84,184.79,2.75]
[1762006334366,4.14488404,184.82,184.79,2.75]
[1762006334566,4.14488404,184.81,184.79,2.75]
[1762006334769,2.67,184.85,184.79,2.75]
[1762006334967,2.67,184.83,184.79,2.75]
[1762006335172,6.81473335,184.82,184.8,77.12]
[1762006335473,4.14473335,184.81,184.8,77.12]
[1762006335772,4.14473335,184.81,184.8,79.87]
[1762006336470,4.14473335,184.81,184.8,2.75]
[1762006336675,7.5411,184.85,184.81,2.76]
[1762006336676,2.67,184.85,184.81,2.76]
[1762006336866,4.1455379,184.84,184.81,2.76]
[1762006337169,4.1455379,184.83,184.81,2.76]
[1762006337377,4.1455379,184.82,184.81,2.76]
[1762006338865,4.1455379,184.82,184.8,77.15579093]
[1762006339067,2.67,184.86,184.8,79.91579093]
[1762006339361,5.02401232,184.92,184.8,79.91579093]
[1762006339362,2.67,184.84,184.8,79.91579093]
[1762006339570,4.14265316,184.83,184.81,2.76]
[1762006339768,4.14265316,184.82,184.8,0.03579093]
[1762006339970,6.81265316,184.81,184.8,0.03579093]
[1762006340364,2.67,184.8,184.78,77.22]
[1762006340574,6.81265316,184.79,184.75,2.68]
[1762006340771,4.14265316,184.78,184.76,77.22]
[1762006340971,4.14265316,184.77,184.76,79.9]
[1762006343276,4.14265316,184.77,184.76,2.68]
[1762006343475,4.14265316,184.77,184.76,79.88]
[1762006343777,4.14265316,184.77,184.76,2.68]
[1762006343972,4.14265316,184.77,184.76,79.88]
[1762006344172,4.14265316,184.77,184.76,2.68]
[1762006344474,4.14265316,184.77,184.76,79.86]
[1762006344974,2.67,184.82,184.76,79.86]
[1762006345178,6.81230002,184.81,184.77,2.68]
[1762006345375,4.14230002,184.8,184.77,2.68]
[1762006345572,4.14230002,184.79,184.77,2.68]
[1762006345878,4.14230002,184.78,184.77,2.68]
[1762006346078,4.14230002,184.78,184.72,16.04767782]
[1762006346079,2.67,184.77,184.73,2.68]
[1762006346280,2.67,184.77,184.76,77.18]
[1762006346479,6.81153427,184.77,184.76,77.18]
[1762006346780,6.81153427,184.77,184.76,77.21776371]
[1762006347282,4.14153427,184.77,184.76,77.21776371]
[1762006347783,4.14153427,184.77,184.76,0.03776371]
[1762006347984,4.14153427,184.77,184.76,79.87776371]
[1762006349584,4.14153427,184.77,184.76,77.17776371]
[1762006350089,4.14153427,184.77,184.76,2.71776371]
[1762006350280,4.14153427,184.77,184.76,79.85776371]
[1762006350782,4.14153427,184.77,184.76,77.17776371]
[1762006351582,6.81153427,184.77,184.76,77.17776371]
[1762006351780,6.81153427,184.77,184.76,0.03776371]
[1762006357094,4.14153427,184.77,184.76,0.03776371]
[1762006357401,6.82153427,184.77,184.76,0.03776371]
[1762006358990,11.1961098,184.77,184.76,0.00281989]
[1762006360298,6.82153427,184.77,184.76,0.00281989]
[1762006370394,7.90153427,184.77,184.76,0.00281989]
[1762006370988,12.05445813,184.77,184.76,0.00281989]
[1762006375495,10.97445813,184.77,184.76,0.00281989]
[1762006376400,8.29445813,184.77,184.76,0.00281989]
[1762006377099,10.97445813,184.77,184.76,0.00281989]
[1762006380508,10.95201606,184.77,184.76,0.00281989]
[1762006382306,10.95201606,184.77,184.67,5.05628702]
[1762006382307,9.7474,184.75,184.67,2.08028366]
[1762006382500,9.7474,184.75,184.48,2.76]
[1762006382501,6.58915106,184.68,184.48,2.76]
[1762006382706,5.02401232,184.66,184.48,2.76]
[1762006382905,3.29457553,184.59,184.48,2.76]
[1762006383098,12.71650073,184.58,184.48,2.76]
[1762006383304,4.8785,184.56,184.48,2.76]
[1762006383501,12.71650073,184.55,184.48,2.76]
[1762006383708,8.27201606,184.54,184.48,2.76]
[1762006383910,7.63261174,184.53,184.48,2.76]
[1762006384096,4.15292386,184.52,184.48,2.76]
[1762006384301,3.51992865,184.51,184.48,2.76]
[1762006384513,0.03517965,184.55,184.48,2.76]
[1762006385100,0.03517965,184.55,184.49,2.76]
[1762006387014,4.54134401,184.54,184.49,2.76]
[1762006387208,0.03517965,184.55,184.49,2.76]
[1762006388012,4.881,184.47,184.35,2.76]
[1762006388311,4.53614678,184.46,184.35,2.76]
[1762006388508,4.53614678,184.45,184.35,2.76]
[1762006388718,4.53614678,184.44,184.35,2.76]
[1762006388919,4.53614678,184.43,184.35,2.76]
[1762006389214,4.53614678,184.42,184.35,2.76]
[1762006389422,4.53614678,184.41,184.35,2.76]
[1762006389605,4.53614678,184.4,184.35,2.76]
[1762006389803,4.53614678,184.39,184.35,2.76]
[1762006390119,3.29457553,184.44,184.35,2.76]
[1762006390323,4.50798873,184.43,184.35,2.76]
[1762006390509,0.03624529,184.4,184.35,2.76]
[1762006392114,4.50234057,184.39,184.35,2.76]
[1762006392322,0.03624529,184.4,184.35,2.76]
[1762006392615,4.49715933,184.39,184.37,2.76]
[1762006392921,0.03624529,184.4,184.37,2.76]
[1762006393218,4.49713552,184.39,184.37,2.76]
[1762006393413,0.03624529,184.4,184.37,2.76]
[1762006393719,4.49263739,184.39,184.35,2.76]
[1762006393913,4.49263739,184.38,184.34,9.7221312]
[1762006394228,4.49263739,184.37,184.34,12.4821312]
[1762006394516,4.49263739,184.36,184.34,12.4821312]
[1762006394718,4.49263739,184.35,184.34,12.4821312]
[1762006395508,4.49263739,184.35,184.34,9.7221312]
[1762006395923,9.44420855,184.35,184.34,9.7221312]
[1762006396311,14.34081271,184.35,184.34,9.7221312]
[1762006399123,14.34081271,184.35,184.34,12.6121312]
[1762006399626,9.84817532,184.35,184.34,12.6121312]
[1762006400018,9.84817532,184.35,184.34,9.7221312]
[1762006402123,9.84817532,184.35,184.34,13.7121312]
[1762006402720,9.84817532,184.35,184.34,12.6321312]
[1762006403020,0.03624529,184.4,184.35,2.91]
[1762006403214,0.03624529,184.4,184.35,5.02812867]
[1762006403421,0.03624529,184.4,184.36,2.91]
[1762006408127,0.03624529,184.4,184.23,431.19418971]
[1762006408128,2.11812867,184.37,184.23,8.971e-05]
[1762006408330,2.11812867,184.37,183.95,9.789]
[1762006408331,0.93,184.18,183.99,16.25]
[1762006408518,3.04812867,184.11,183.9,1.84]
[1762006408827,0.93,184.11,183.97,4.84639256]
[1762006409026,0.93,184.15,183.98,2.11812867]
[1762006409331,0.93,184.23,183.99,5.40909066]
[1762006409533,5.8179,184.21,183.99,5.40909066]
[1762006410026,0.93,184.21,184.03,5.40909066]
[1762006410226,0.93,184.26,184.05,2.91]
[1762006410825,0.93,184.26,184.07,2.91]
[1762006411227,6.33909066,184.24,184.13,2.91]
[1762006412233,0.03508858,184.2,184.13,2.91]
[1762006412823,6.33909066,184.24,184.13,2.91]
[1762006413220,5.8155,184.3,184.14,4.8896]
[1762006413421,95.6727172,184.42,184.15,2.91]
[1762006413422,6.33909066,184.29,184.15,2.91]
[1762006413624,0.93,184.28,183.97,4.84639256]
[1762006413831,5.40909066,184.13,184.01,2.91]
[1762006414033,0.93,184.19,184.01,2.91]
[1762006414435,0.93,184.19,183.97,10.25548322]
[1762006414436,0.93,184.19,184.07,2.91]
[1762006414829,0.93,184.23,184.07,2.91]
[1762006415137,8.94564075,184.22,184.11,2.91]
[1762006415334,8.94545748,184.21,184.12,62.37]
[1762006415535,8.94545748,184.2,184.12,2.91]
[1762006415736,4.61299917,184.19,184.12,88.89]
[1762006415935,4.61299917,184.18,184.12,88.89]
[1762006416133,0.93,184.23,184.12,88.89]
[1762006416437,6.33909066,184.19,184.08,2.75]
[1762006416633,8.9425753,184.18,184.08,2.75]
[1762006416828,0.93,184.23,184.09,2.75]
[1762006417139,8.94019292,184.22,184.09,2.75]
[1762006417438,8.94019292,184.21,184.09,2.75]
[1762006417634,8.94019292,184.2,184.1,2.75]
[1762006417933,10.29629066,184.24,184.1,2.75]
[1762006417934,5.8163,184.27,184.1,2.75]
[1762006418137,8.94277786,184.26,184.12,2.75]
[1762006418350,8.94277786,184.25,184.12,2.75]
[1762006418530,8.94277786,184.24,184.12,2.75]
[1762006418729,11.22539066,184.27,184.12,2.75]
[1762006418730,8.94474287,184.23,184.12,2.75]
[1762006419033,11.22539066,184.27,184.14,2.75]
[1762006419034,6.33909066,184.27,184.14,2.75]
[1762006419339,8.94736649,184.26,184.16,2.75]
[1762006419536,8.94736649,184.25,184.16,2.75]
[1762006419731,8.94736649,184.24,184.17,85.96]
[1762006419932,8.94736649,184.23,184.17,88.71]
[1762006420124,8.94920335,184.22,184.18,2.75]
[1762006420330,4.61323404,184.21,184.18,2.75]
[1762006420630,4.61323404,184.2,184.18,2.75]
[1762006420935,0.93,184.26,184.18,2.75]
[1762006421242,8.95993419,184.25,184.18,2.75]
[1762006421536,8.95993419,184.24,184.18,2.75]
[1762006421739,8.95993419,184.23,184.18,2.75]
[1762006421943,8.95993419,184.22,184.18,2.75]
[1762006422144,4.62011763,184.21,184.18,2.75]
[1762006422344,4.8861,184.28,184.18,2.75]
[1762006422537,8.7787851,184.27,184.18,2.75]
[1762006422846,8.7787851,184.26,184.18,2.75]
[1762006423037,4.34961539,184.25,184.18,2.75]
[1762006423234,8.78439111,184.24,184.18,2.75]
[1762006423430,8.784392,184.23,184.18,2.75]
[1762006423734,4.34961539,184.22,184.18,2.75]
[1762006424042,4.34961539,184.21,184.18,2.75]
[1762006424235,4.34961539,184.2,184.18,2.75]
[1762006424433,4.34961539,184.19,184.18,2.75]
[1762006424643,3.68379251,184.19,184.18,2.75]
[1762006424843,4.8857,184.29,184.18,2.75]
[1762006425045,4.44174158,184.28,184.18,2.75]
[1762006425245,4.44174158,184.27,184.18,2.75]
[1762006425443,4.44174158,184.26,184.18,2.75]
[1762006425646,4.44174158,184.25,184.18,2.75]
[1762006425839,5.40909066,184.3,184.18,2.75]
[1762006425840,11.22459066,184.3,184.18,2.75]
[1762006426035,4.44212784,184.29,184.18,2.75]
[1762006426239,4.44212784,184.28,184.18,2.75]
[1762006426446,4.44212784,184.27,184.18,2.75]
[1762006426644,4.44212784,184.26,184.18,2.75]
[1762006426839,4.44212784,184.25,184.18,2.75]
[1762006427042,11.22459066,184.3,184.18,2.75]
[1762006427242,8.47213536,184.29,184.18,2.75]
[1762006427549,4.45026725,184.28,184.19,2.9]
[1762006427851,4.45026725,184.27,184.19,2.9]
[1762006428056,4.8847,184.33,184.19,2.9]
[1762006428239,8.49257111,184.32,184.21,2.9]
[1762006428441,4.8847,184.33,184.21,2.9]
[1762006428742,4.03521703,184.32,184.21,2.9]
[1762006428946,6.33909066,184.34,184.23,2.9]
[1762006429147,9.90791232,184.36,184.23,2.9]
[1762006429148,4.03524113,184.33,184.23,2.9]
[1762006429343,4.8839,184.36,184.23,2.9]
[1762006429548,4.0389382,184.35,184.23,2.9]
[1762006429850,4.0389382,184.34,184.23,2.9]
[1762006430043,4.0389382,184.33,184.23,2.9]
[1762006430247,4.8839,184.36,184.26,2.9]
[1762006430449,8.25118934,184.35,184.26,2.9]
[1762006430651,4.04427531,184.34,184.26,2.9]
[1762006430943,4.04427531,184.33,184.26,2.9]
[1762006431144,4.04846508,184.32,184.26,88.3]
[1762006431350,4.04846508,184.31,184.26,88.3]
[1762006431651,11.36310298,184.35,184.26,88.3]
[1762006431851,4.8847,184.33,184.26,2.9]
[1762006432049,4.04344433,184.32,184.25,85.38]
[1762006432245,4.04344433,184.31,184.25,85.38]
[1762006432441,5.02401232,184.32,184.25,85.38]
[1762006432442,4.04344433,184.3,184.25,85.38]
[1762006432646,4.04344433,184.29,184.25,2.9]
[1762006432846,4.04344433,184.28,184.25,2.9]
[1762006433149,4.04344433,184.27,184.25,2.9]
[1762006433350,4.8852,184.31,184.25,2.9]
[1762006433551,4.97791795,184.3,184.25,2.9]
[1762006433753,9.86361795,184.29,184.2,2.9]
[1762006434059,4.04791795,184.28,184.21,88.2]
[1762006434248,4.04791795,184.27,184.21,88.2]
[1762006434446,5.8157,184.29,184.21,88.2]
[1762006434447,4.04791795,184.26,184.22,2.9]
[1762006434647,5.8157,184.29,184.22,2.9]
[1762006434950,3.99110715,184.28,184.22,2.9]
[1762006435150,5.8157,184.29,184.22,2.9]
[1762006435646,5.40909066,184.31,184.22,2.9]
[1762006435847,3.99216816,184.3,184.22,2.9]
[1762006436149,4.885,184.32,184.22,2.9]
[1762006436447,3.99350663,184.31,184.24,2.9]
[1762006436654,0.93,184.37,184.24,2.9]
[1762006436847,7.89775342,184.36,184.24,2.9]
[1762006437048,7.89775342,184.35,184.24,2.9]
[1762006437248,0.93,184.37,184.24,2.9]
[1762006437448,3.9954634,184.36,184.25,2.9]
[1762006437756,0.93,184.34,184.26,85.1]
[1762006438252,3.98990639,184.33,184.26,85.08]
[1762006438454,0.93,184.34,184.26,85.08]
[1762006438752,4.8846,184.33,184.26,85.08]
[1762006440255,5.8146,184.33,184.26,87.98]
[1762006442155,5.40909066,184.35,184.27,2.9]
[1762006442545,11.22339066,184.35,184.27,2.9]
[1762006442745,11.22339066,184.35,184.28,84.84]
[1762006443449,11.22339066,184.35,184.28,87.74]
[1762006444855,4.8835,184.38,184.29,2.9]
[1762006446053,0.93,184.38,184.29,2.9]
[1762006446960,4.884,184.36,184.29,2.9]
[1762006447958,4.8843,184.35,184.29,2.9]
[1762006448261,0.93,184.34,184.3,84.62]
[1762006448858,0.93,184.34,184.3,87.52]
[1762006449056,4.8843,184.35,184.3,87.52]
[1762006449258,5.8143,184.35,184.3,87.38]
[1762006449554,4.8843,184.35,184.3,87.38]
[1762006449753,0.93,184.38,184.27,2.9]
[1762006449953,6.33909066,184.35,184.28,84.38]
[1762006450153,0.93,184.35,184.28,84.38]
[1762006450352,0.93,184.35,184.28,87.28]
[1762006450860,0.93,184.35,184.28,2.9]
[1762006451066,5.8146,184.34,184.29,87.32]
[1762006451447,5.8146,184.34,184.29,87.3]
[1762006453162,4.8846,184.34,184.3,2.9]
[1762006453862,4.8838,184.37,184.3,2.9]
[1762006454754,4.883,184.39,184.3,2.9]
[1762006455159,76.0116,184.27,183.99,13.21643692]
[1762006455367,76.0116,184.27,183.96,84.28]
[1762006455368,2.86,184.18,183.96,84.28]
[1762006455573,2.86,184.16,184.03,0.94521553]
[1762006455756,4.8898,184.14,184.03,0.94521553]
[1762006456061,8.5532879,184.13,183.98,4.8939]
[1762006456260,4.08890411,184.12,184.0,5.83871086]
[1762006456562,7.7498,184.14,184.0,5.83871086]
[1762006456865,9.20955836,184.13,184.0,5.83871086]
[1762006457060,2.86,184.14,184.03,2.75]
[1762006457759,2.86,184.14,184.04,4.8923]
[1762006458065,4.889,184.17,184.06,2.75]
[1762006458262,9.20710893,184.16,184.06,2.75]
[1762006458465,4.74717043,184.15,184.06,2.75]
[1762006458663,7.579,184.17,184.06,2.75]
[1762006458863,2.69,184.15,184.06,2.75]
[1762006459068,9.22918673,184.14,184.06,2.75]
[1762006459266,2.69,184.15,184.06,2.75]
[1762006459466,9.22717629,184.14,184.06,2.75]
[1762006459765,2.69,184.15,184.06,2.75]
[1762006459960,9.22715325,184.14,184.06,2.75]
[1762006460264,4.74440595,184.13,184.07,2.75]
[1762006460465,2.69,184.21,184.09,2.75]
[1762006460666,9.22619299,184.2,184.09,2.75]
[1762006460858,9.22619299,184.19,184.09,2.75]
[1762006461055,2.71,184.17,184.09,2.75]
[1762006461263,11.9344042,184.16,184.09,2.75]
[1762006461567,4.89337728,184.15,184.1,87.84]
[1762006461771,4.89337728,184.14,184.1,87.84]
[1762006461956,4.89337728,184.13,184.1,87.84]
[1762006462151,2.71,184.16,184.1,87.84]
[1762006462355,4.89248161,184.15,184.11,2.94]
[1762006462567,2.71,184.21,184.11,2.94]
[1762006462770,9.37496619,184.2,184.11,2.94]
[1762006463067,9.37496619,184.19,184.12,7.8301]
[1762006463266,4.89271453,184.18,184.13,2.94]
[1762006463560,2.71,184.26,184.13,2.94]
[1762006463760,2.71,184.24,184.13,2.94]
[1762006463970,9.375618,184.23,184.13,2.94]
[1762006464162,9.375618,184.22,184.13,2.94]
[1762006464363,4.8924667,184.21,184.13,2.94]
[1762006464669,4.8924667,184.2,184.13,2.94]
[1762006464866,2.71,184.24,184.13,2.94]
[1762006465062,9.37507602,184.23,184.14,7.8296]
[1762006465364,4.89218385,184.22,184.14,7.8296]
[1762006465667,4.89210798,184.21,184.17,2.94]
[1762006465867,2.71,184.24,184.17,2.94]
[1762006466071,9.37531205,184.23,184.17,2.94]
[1762006466268,4.8921106,184.22,184.17,2.94]
[1762006466565,4.8921106,184.21,184.17,2.94]
[1762006466866,2.71,184.24,184.17,2.94]
[1762006467053,4.89220341,184.23,184.17,2.94]
[1762006467260,2.71,184.24,184.17,2.94]
[1762006467462,4.8924198,184.23,184.17,2.94]
[1762006467760,2.71,184.24,184.17,2.94]
[1762006467961,4.89242045,184.23,184.17,2.94]
[1762006468160,2.71,184.24,184.17,2.94]
[1762006468361,4.89250426,184.23,184.17,2.94]
[1762006468564,2.71,184.3,184.19,2.94]
[1762006468770,8.8874327,184.31,184.19,2.94]
[1762006468771,2.71,184.28,184.19,2.94]
[1762006468961,9.37654437,184.27,184.19,2.94]
[1762006469162,4.89250426,184.26,184.2,4.888]